Workbook

Sheet Saisie
B1: Saisissez vos investissements et vos crédits
E2: Crédits & droits | I2: www.grainedinvestisseur.com
B3: ⇩ TIPS : cacher les lignes qui ne sont plus actives
B4: Type | C4: Classe d'actif | D4: Support / type de crédit | E4: Elément | F4: Risque | G4: Rendement espéré / Taux | H4: Déblocage (liquidité) | I4: Lien | J4: 31/09/2018 | K4: 30/10/2018 | L4: 18/02/2019 | M4: 05/10/2019 | N4: 24/10/2019 | O4: 21/12/2019 | P4: 01/03/2020 | Q4: 23/03/2020 | R4: 11/04/2020 | S4: 03/05/2020 | T4: 18/09/2020 | U4: 11/11/2020 | V4: 18/12/2020 | W4: 10/04/2021 | X4: 28/06/2021 | Y4: 28/02/2022 | Z4: 28/02/2023 | AA4: 28/02/2024 | AB4: 28/02/2025 | AC4: 28/02/2026 | AD4: 28/02/2027 | AE4: 28/02/2028 | AF4: 28/02/2029 | AG4: 28/02/2030 | AH4: 28/02/2031 | AI4: 28/02/2032 | AJ4: 28/02/2033 | AK4: 28/02/2034 | AL4: 28/02/2035 | AM4: 28/02/2036 | AN4: 28/02/2037 | AO4: 28/02/2038 | AP4: 28/02/2039 | AQ4: 28/02/2040 | AR4: 28/02/2041 | AS4: 28/02/2042 | AT4: 28/02/2043 | AU4: 28/02/2044 | AV4: 28/02/2045 | AW4: 28/02/2046 | AX4: 28/02/2047 | AY4: 28/02/2048 | AZ4: 28/02/2049 | BA4: 28/02/2050
B5: Actif | C5: Cash | D5: Compte-courant | E5: CIC | F5: 1 / 7 | G5: 0 | H5: immédiat | I5: cic.fr | J5: 20000 | K5: 20000 | L5: 10000 | M5: 0 | N5: 8000 | O5: 1250 | P5: 0 | X5: =W5/W$36 -> 0
B6: Actif | C6: Cash | D6: Compte-courant | E6: LCL | F6: 1 / 7 | G6: 0 | H6: immédiat | I6: lcl.fr | Q6: 2000 | R6: 6000 | S6: 6000 | T6: 1500 | U6: 8000 | V6: 1000 | W6: 3500 | X6: =$W6/W$36 -> 0.006954724742 | Y6: =$W6/W$35 -> 0.04377462323
B7: Actif | C7: Cash | D7: Compte-courant | E7: Max | F7: 1 / 7 | G7: 0 | H7: immédiat | I7: max.fr | M7: 500 | N7: 500 | O7: 1700 | P7: 500 | Q7: 500 | R7: 500 | S7: 500 | T7: 500 | U7: 500 | V7: 500 | W7: 500 | X7: =$W7/W$36 -> 0.000993532106 | Y7: =$W7/W$35 -> 0.006253517604
B8: Actif | C8: Cash | D8: Compte-courant | E8: Boursorama | F8: 1 / 7 | G8: 0 | H8: imédiat | I8: boursorama.com | W8: 4500 | X8: 0.008941788954 | Y8: 0.05628165843
B9: Actif | C9: Immobilier | D9: Appartement | E9: Appartement Paris | F9: 4 / 7 | G9: 0.01 | H9: non | Q9: 370000 | R9: 370000 | S9: 370000 | T9: =370000+60000 -> 430000 | U9: 445000 | V9: 445000 | W9: 445000 | X9: 0.8842435743 | Y9: 5.565630667
B10: Actif | C10: Actions/obligations | D10: Compte-titre | E10: Boursorama | F10: 6 / 7 | G10: 0.07 | H10: immédiat | I10: boursorama.com | J10: 7800 | K10: 7800 | L10: 7800 | M10: 17800 | N10: 17000 | O10: 12630 | P10: 24000 | Q10: 15140 | R10: 13000 | S10: 15000 | T10: 4000 | U10: 4000 | V10: 2000 | W10: 2300 | X10: 0.004570247688 | Y10: 0.02876618098
B11: Actif | C11: Actions/obligations | D11: Compte-titre | E11: Morgan Stanley - actions entreprise 1 | F11: 6 / 7 | G11: 0.07 | H11: immédiat | I11: stockplanconnect.morganstanley.com | J11: 8000 | K11: 8000 | L11: 8000 | M11: 11000 | N11: 11000 | O11: 12000 | P11: 14000 | Q11: 3000 | R11: 3000 | S11: 4000 | T11: 5300 | U11: 5300 | V11: 5300 | W11: 6500 | X11: 0.01291591738 | Y11: 0.08129572885
B12: Actif | C12: Actions/obligations | D12: Compte-titre | E12: Morgan Stanley - actions entreprise 2 | F12: 6 / 7 | G12: 0.07 | H12: immédiat | I12: stockplanconnect.morganstanley.com | J12: 5000 | K12: 5000 | L12: 5000 | M12: 5000 | N12: 5000 | O12: 5000 | P12: 6000 | Q12: 3000 | R12: 3000 | S12: 4000 | T12: 7000 | U12: 7000 | V12: 7000 | W12: 8500 | X12: 0.0168900458 | Y12: 0.1063097993
B13: Actif | C13: Actions/obligations | D13: Plan Epargne Entreprise | E13: HSBC | F13: 5 / 7 | G13: 0.02 | H13: sous-condition | I13: epargnant.ere.hsbc.fr | K13: 5000 | L13: 5000 | M13: 7600 | N13: 7800 | O13: 8000 | P13: 9000 | Q13: 0 | X13: 0 | Y13: 0
B14: Actif | C14: Actions/obligations | D14: PEA | E14: Bourse Direct | F14: 6 / 7 | G14: 0.07 | H14: immédiat | I14: boursedirect.fr | S14: 2000 | T14: 2300 | U14: 2300 | V14: 2300 | W14: 2700 | X14: 0.005365073372 | Y14: 0.03376899506
B15: Actif | C15: Actions/obligations | D15: Assurance-Vie | E15: LINXEA Assurance Vie | F15: 5 / 7 | G15: 0.05 | H15: immédiat | I15: linxea.com | T15: 2150 | U15: 2200 | V15: 2200 | W15: 2700 | X15: 0.005365073372 | Y15: 0.03376899506
B16: Actif | C16: P2P Lending | D16: P2P Lending | E16: Bondora | F16: 7 / 7 | G16: 0.09 | H16: glissant | I16: bondora.com | J16: 250 | K16: 250 | L16: 250 | M16: 250 | N16: 250 | O16: 250 | P16: 250 | Q16: 250 | R16: 250 | S16: 250 | T16: 250 | U16: 250 | V16: 250 | W16: 255 | X16: 0.0005067013741 | Y16: 0.003189293978
B17: Actif | C17: P2P Lending | D17: P2P Lending | E17: Mintos | F17: 7 / 7 | G17: 0.09 | H17: glissant | I17: mintos.com | J17: 4500 | K17: 4500 | L17: 4500 | M17: 4500 | N17: 4500 | O17: 4500 | P17: 4500 | Q17: 4500 | R17: 4500 | S17: 4500 | T17: 4500 | U17: 5500 | V17: 5500 | W17: 5600 | X17: 0.01112755959 | Y17: 0.07003939716
B18: Actif | C18: P2P Lending | D18: P2P Lending | E18: Twino | F18: 7 / 7 | G18: 0.09 | H18: glissant | I18: twino.eu | J18: 2500 | K18: 2500 | L18: 2500 | M18: 2500 | N18: 2500 | O18: 2500 | P18: 2500 | Q18: 2500 | R18: 2500 | S18: 2500 | T18: 2500 | U18: 3000 | V18: 3000 | W18: 3200 | X18: 0.006358605478 | Y18: 0.04002251266
B19: Actif | C19: Private Equity | D19: Indirect | E19: FCPI : NextStage | F19: 6 / 7 | G19: 0.07 | H19: 7/8 ans | I19: meilleursfcpi.com | V19: 3000 | W19: 3000 | X19: 0.005961192636 | Y19: 0.03752110562
B20: Actif | C20: Private Equity | D20: Indirect | E20: FCPI : Alto Innovation | F20: 6 / 7 | G20: 0.07 | H20: 7/8 ans | I20: meilleursfcpi.com | V20: 2000 | W20: 2000 | X20: 0.003974128424 | Y20: 0.02501407041
B21: Actif | C21: Private Equity | D21: Indirect | E21: FIP : Smalt Capital (Corse) | F21: 6 / 7 | G21: 0.07 | H21: 7/8 ans | I21: meilleursfcpi.com | V21: 2000 | W21: 2000 | X21: 0.003974128424 | Y21: 0.02501407041
B22: Actif | C22: Private Equity | D22: Direct | E22: Start-up SAVY Colombie | F22: 7 / 7 | G22: 0.12 | H22: 7/8 ans | L22: 13000 | M22: 13000 | N22: 13000 | O22: 13000 | P22: 13000 | Q22: 13000 | R22: 13000 | S22: 13000 | T22: 0 | U22: 0 | V22: 0 | W22: 0 | X22: 0 | Y22: 0
B23: Actif | C23: Private Equity | D23: Direct | E23: LaMasterBox | F23: 7 / 7 | G23: 0.12 | H23: 7/8 ans | I23: incit-financement.fr | O23: 2000 | P23: 2000 | Q23: 2000 | R23: 2000 | S23: 2000 | T23: 2000 | U23: 2000 | V23: 2000 | W23: 2000 | X23: 0.003974128424 | Y23: 0.02501407041
B24: Actif | C24: Private Equity | D24: Direct | E24: AddBike | F24: 7 / 7 | G24: 0.12 | H24: 7/8 ans | I24: incit-financement.fr | V24: 2000 | W24: 2000 | X24: 0.003974128424 | Y24: 0.02501407041
B25: Actif | C25: Private Equity | D25: Direct | E25: MainBot | F25: 7 / 7 | G25: 0.12 | H25: 7/8 ans | I25: sowefund.com | V25: 2000 | W25: 2000 | X25: 0.003974128424 | Y25: 0.02501407041
B26: Actif | C26: Crypto-monnaie | D26: Wallet Crypto | E26: Kraken | F26: 7 / 7 | G26: ? | H26: immédiat | I26: kraken.com | J26: 673 | K26: 673 | L26: 673 | M26: 673 | N26: 1000 | O26: 1000 | P26: 750 | Q26: 555 | R26: 555 | S26: 555 | T26: 555 | U26: 1000 | V26: 2000 | W26: 3500 | X26: 0.006954724742 | Y26: 0.04377462323
B27: Actif | C27: Crypto-monnaie | D27: Wallet Crypto | E27: CoinBase | F27: 7 / 7 | G27: ? | H27: immédiat | I27: coinbase.com | N27: 300 | O27: 300 | P27: 200 | Q27: 180 | R27: 180 | S27: 180 | T27: 180 | U27: 400 | V27: 600 | W27: 1500 | X27: 0.002980596318 | Y27: 0.01876055281
B28: Actif | G28: ? | Y28: 0
B29: Actif | Y29: 0
B30: Actif | G30: ? | Y30: 0
B31: Passif | C31: Cash | D31: Crédit à la consommation | E31: Boursorama | F31: - | G31: 0.01 | H31: - | I31: boursorama.com | Q31: -10000 | R31: -10000 | S31: -10000 | T31: -8700 | U31: -8700 | V31: -8000 | W31: -7300 | Y31: -0.09130135701
B32: Passif | C32: Immobilier | D32: Crédit immobilier | E32: LCL | F32: - | G32: 0.013 | H32: - | I32: lcl.fr | Q32: -370000 | R32: -370000 | S32: -370000 | T32: -408693 | U32: -415000 | V32: -416000 | W32: -416000 | Y32: -5.202926646
B33: Passif | G33: ?
B34: Passif | G34: ?
B35: Total | C35: Total | J35: =SUM(TableSaisie[31/09/2018]) -> 48723 | K35: =SUM(TableSaisie[30/10/2018]) -> 53723 | L35: =SUM(TableSaisie[18/02/2019]) -> 56723 | M35: =SUM(TableSaisie[05/10/2019]) -> 62823 | N35: =SUM(TableSaisie[24/10/2019]) -> 70850 | O35: =SUM(TableSaisie[21/12/2019]) -> 64130 | P35: =SUM(TableSaisie[01/03/2020]) -> 76700 | Q35: =SUM(TableSaisie[23/03/2020]) -> 36625 | R35: =SUM(TableSaisie[11/04/2020]) -> 38485 | S35: =SUM(TableSaisie[03/05/2020]) -> 44485 | T35: =SUM(TableSaisie[18/09/2020]) -> 45342 | U35: =SUM(TableSaisie[11/11/2020]) -> 62750 | V35: =SUM(TableSaisie[18/12/2020]) -> 65650 | W35: =SUM(TableSaisie[10/04/2021]) -> 79955 | X35: =SUM(TableSaisie[28/06/2021]) -> 1 | Y35: =SUM(TableSaisie[28/02/2022]) -> 1 | Z35: =SUM(TableSaisie[28/02/2023]) -> 0 | AA35: =SUM(TableSaisie[28/02/2024]) -> 0 | AB35: =SUM(TableSaisie[28/02/2025]) -> 0 | AC35: =SUM(TableSaisie[28/02/2026]) -> 0 | AD35: =SUM(TableSaisie[28/02/2027]) -> 0 | AE35: =SUM(TableSaisie[28/02/2028]) -> 0 | AF35: =SUM(TableSaisie[28/02/2029]) -> 0 | AG35: =SUM(TableSaisie[28/02/2030]) -> 0 | AH35: =SUM(TableSaisie[28/02/2031]) -> 0 | AI35: =SUM(TableSaisie[28/02/2032]) -> 0 | AJ35: =SUM(TableSaisie[28/02/2033]) -> 0 | AK35: =SUM(TableSaisie[28/02/2034]) -> 0 | AL35: =SUM(TableSaisie[28/02/2035]) -> 0 | AM35: =SUM(TableSaisie[28/02/2036]) -> 0 | AN35: =SUM(TableSaisie[28/02/2037]) -> 0 | AO35: =SUM(TableSaisie[28/02/2038]) -> 0 | AP35: =SUM(TableSaisie[28/02/2039]) -> 0 | AQ35: =SUM(TableSaisie[28/02/2040]) -> 0 | AR35: =SUM(TableSaisie[28/02/2041]) -> 0 | AS35: =SUM(TableSaisie[28/02/2042]) -> 0 | AT35: =SUM(TableSaisie[28/02/2043]) -> 0 | AU35: =SUM(TableSaisie[28/02/2044]) -> 0 | AV35: =SUM(TableSaisie[28/02/2045]) -> 0 | AW35: =SUM(TableSaisie[28/02/2046]) -> 0 | AX35: =SUM(TableSaisie[28/02/2047]) -> 0 | AY35: =SUM(TableSaisie[28/02/2048]) -> 0 | AZ35: =SUM(TableSaisie[28/02/2049]) -> 0 | BA35: =SUM(TableSaisie[28/02/2050]) -> 0
B36: Total Actif | C36: Total Actif | J36: =SUMIF(TableSaisie[Type],"Actif",TableSaisie[31/09/2018]) -> 48723 | K36: =SUMIF(TableSaisie[Type],"Actif",TableSaisie[30/10/2018]) -> 53723 | L36: =SUMIF(TableSaisie[Type],"Actif",TableSaisie[18/02/2019]) -> 56723 | M36: =SUMIF(TableSaisie[Type],"Actif",TableSaisie[05/10/2019]) -> 62823 | N36: =SUMIF(TableSaisie[Type],"Actif",TableSaisie[24/10/2019]) -> 70850 | O36: =SUMIF(TableSaisie[Type],"Actif",TableSaisie[21/12/2019]) -> 64130 | P36: =SUMIF(TableSaisie[Type],"Actif",TableSaisie[01/03/2020]) -> 76700 | Q36: =SUMIF(TableSaisie[Type],"Actif",TableSaisie[23/03/2020]) -> 416625 | R36: =SUMIF(TableSaisie[Type],"Actif",TableSaisie[11/04/2020]) -> 418485 | S36: =SUMIF(TableSaisie[Type],"Actif",TableSaisie[03/05/2020]) -> 424485 | T36: =SUMIF(TableSaisie[Type],"Actif",TableSaisie[18/09/2020]) -> 462735 | U36: =SUMIF(TableSaisie[Type],"Actif",TableSaisie[11/11/2020]) -> 486450 | V36: =SUMIF(TableSaisie[Type],"Actif",TableSaisie[18/12/2020]) -> 489650 | W36: =SUMIF(TableSaisie[Type],"Actif",TableSaisie[10/04/2021]) -> 503255 | X36: =SUMIF(TableSaisie[Type],"Actif",TableSaisie[28/06/2021]) -> 1 | Y36: =SUMIF(TableSaisie[Type],"Actif",TableSaisie[28/02/2022]) -> 6.294228003 | Z36: =SUMIF(TableSaisie[Type],"Actif",TableSaisie[28/02/2023]) -> 0 | AA36: =SUMIF(TableSaisie[Type],"Actif",TableSaisie[28/02/2024]) -> 0 | AB36: =SUMIF(TableSaisie[Type],"Actif",TableSaisie[28/02/2025]) -> 0 | AC36: =SUMIF(TableSaisie[Type],"Actif",TableSaisie[28/02/2026]) -> 0 | AD36: =SUMIF(TableSaisie[Type],"Actif",TableSaisie[28/02/2027]) -> 0 | AE36: =SUMIF(TableSaisie[Type],"Actif",TableSaisie[28/02/2028]) -> 0 | AF36: =SUMIF(TableSaisie[Type],"Actif",TableSaisie[28/02/2029]) -> 0 | AG36: =SUMIF(TableSaisie[Type],"Actif",TableSaisie[28/02/2030]) -> 0 | AH36: =SUMIF(TableSaisie[Type],"Actif",TableSaisie[28/02/2031]) -> 0 | AI36: =SUMIF(TableSaisie[Type],"Actif",TableSaisie[28/02/2032]) -> 0 | AJ36: =SUMIF(TableSaisie[Type],"Actif",TableSaisie[28/02/2033]) -> 0 | AK36: =SUMIF(TableSaisie[Type],"Actif",TableSaisie[28/02/2034]) -> 0 | AL36: =SUMIF(TableSaisie[Type],"Actif",TableSaisie[28/02/2035]) -> 0 | AM36: =SUMIF(TableSaisie[Type],"Actif",TableSaisie[28/02/2036]) -> 0 | AN36: =SUMIF(TableSaisie[Type],"Actif",TableSaisie[28/02/2037]) -> 0 | AO36: =SUMIF(TableSaisie[Type],"Actif",TableSaisie[28/02/2038]) -> 0 | AP36: =SUMIF(TableSaisie[Type],"Actif",TableSaisie[28/02/2039]) -> 0 | AQ36: =SUMIF(TableSaisie[Type],"Actif",TableSaisie[28/02/2040]) -> 0 | AR36: =SUMIF(TableSaisie[Type],"Actif",TableSaisie[28/02/2041]) -> 0 | AS36: =SUMIF(TableSaisie[Type],"Actif",TableSaisie[28/02/2042]) -> 0 | AT36: =SUMIF(TableSaisie[Type],"Actif",TableSaisie[28/02/2043]) -> 0 | AU36: =SUMIF(TableSaisie[Type],"Actif",TableSaisie[28/02/2044]) -> 0 | AV36: =SUMIF(TableSaisie[Type],"Actif",TableSaisie[28/02/2045]) -> 0 | AW36: =SUMIF(TableSaisie[Type],"Actif",TableSaisie[28/02/2046]) -> 0 | AX36: =SUMIF(TableSaisie[Type],"Actif",TableSaisie[28/02/2047]) -> 0 | AY36: =SUMIF(TableSaisie[Type],"Actif",TableSaisie[28/02/2048]) -> 0 | AZ36: =SUMIF(TableSaisie[Type],"Actif",TableSaisie[28/02/2049]) -> 0 | BA36: =SUMIF(TableSaisie[Type],"Actif",TableSaisie[28/02/2050]) -> 0
X38: =SUM(X6:X27) -> 1 | Y38: =SUM(Y6:Y34) -> 1

Sheet Dashboard_Allocation
B1: Choisissez une date de consultation d'allocation
B3: Date consultation | C3: 10/04/2021
B5: Patrimoine Brut | G5: Patrimoine Net
B21: Type | C21: Actif
B23: Row Labels | C23: Sum of 10/04/2021 | G23: Row Labels | H23: Sum of 10/04/2021
B24: Actions/obligations | C24: 22700 | D24: =$C24/$C$31 -> 0.04510635761 | G24: Actions/obligations | H24: 22700 | I24: =$H24/$H$31 -> 0.2839096992
B25: Cash | C25: 8500 | D25: =$C25/$C$31 -> 0.0168900458 | G25: Cash | H25: 1200 | I25: =$H25/$H$31 -> 0.01500844225
B26: Crypto-monnaie | C26: 5000 | D26: 0.00993532106 | G26: Crypto-monnaie | H26: 5000 | I26: 0.06253517604
B27: Immobilier | C27: 445000 | D27: 0.8842435743 | G27: Immobilier | H27: 29000 | I27: 0.362704021
B28: P2P Lending | C28: 9055 | D28: 0.01799286644 | G28: P2P Lending | H28: 9055 | I28: 0.1132512038
B29: Private Equity | C29: 13000 | D29: 0.02583183476 | G29: Private Equity | H29: 13000 | I29: 0.1625914577
B30: (blank) | D30: 0 | G30: (blank) | I30: 0
B31: Grand Total | C31: 503255 | D31: =SUM(D24:D30) -> 1 | G31: Grand Total | H31: 79955 | I31: =SUM(I24:I30) -> 1

Sheet DashBoard_Evol_Brut
B1: Ci-dessous l'évolution de votre Patrimoine Brut
B34: Type | C34: (Multiple Items)
C36: Column Labels
B37: Values | C37: Actions/obligations | D37: Cash | E37: Crypto-monnaie | F37: Immobilier | G37: P2P Lending | H37: Private Equity | I37: Total Actif | J37: (blank) | K37: Grand Total
B38: Sum of 30/10/2018 | C38: 25800 | D38: 20000 | E38: 673 | G38: 7250 | I38: 53723 | K38: 107446
B39: Sum of 18/02/2019 | C39: 25800 | D39: 10000 | E39: 673 | G39: 7250 | H39: 13000 | I39: 56723 | K39: 113446
B40: Sum of 05/10/2019 | C40: 41400 | D40: 500 | E40: 673 | G40: 7250 | H40: 13000 | I40: 62823 | K40: 125646
B41: Sum of 24/10/2019 | C41: 40800 | D41: 8500 | E41: 1300 | G41: 7250 | H41: 13000 | I41: 70850 | K41: 141700
B42: Sum of 21/12/2019 | C42: 37630 | D42: 2950 | E42: 1300 | G42: 7250 | H42: 15000 | I42: 64130 | K42: 128260
B43: Sum of 01/03/2020 | C43: 53000 | D43: 500 | E43: 950 | G43: 7250 | H43: 15000 | I43: 76700 | K43: 153400
B44: Sum of 23/03/2020 | C44: 21140 | D44: 2500 | E44: 735 | F44: 370000 | G44: 7250 | H44: 15000 | I44: 416625 | K44: 833250
B45: Sum of 11/04/2020 | C45: 19000 | D45: 6500 | E45: 735 | F45: 370000 | G45: 7250 | H45: 15000 | I45: 418485 | K45: 836970
B46: Sum of 03/05/2020 | C46: 25000 | D46: 6500 | E46: 735 | F46: 370000 | G46: 7250 | H46: 15000 | I46: 424485 | K46: 848970
B47: Sum of 18/09/2020 | C47: 20750 | D47: 2000 | E47: 735 | F47: 430000 | G47: 7250 | H47: 2000 | I47: 462735 | K47: 925470
B48: Sum of 11/11/2020 | C48: 20800 | D48: 8500 | E48: 1400 | F48: 445000 | G48: 8750 | H48: 2000 | I48: 486450 | K48: 972900
B49: Sum of 18/12/2020 | C49: 18800 | D49: 1500 | E49: 2600 | F49: 445000 | G49: 8750 | H49: 13000 | I49: 489650 | K49: 979300
B50: Sum of 10/04/2021 | C50: 22700 | D50: 8500 | E50: 5000 | F50: 445000 | G50: 9055 | H50: 13000 | I50: 503255 | K50: 1006510

Sheet DashBoard_Evol_Net
B1: Ci-dessous l'évolution de votre Patrimoine Net
B36: Type | C36: (Multiple Items)
C38: Column Labels
B39: Values | C39: Actions/obligations | D39: Cash | E39: Crypto-monnaie | F39: Immobilier | G39: P2P Lending | H39: Private Equity | I39: Total | J39: (blank) | K39: Grand Total
B40: Sum of 30/10/2018 | C40: 25800 | D40: 20000 | E40: 673 | G40: 7250 | I40: 53723 | K40: 107446
B41: Sum of 18/02/2019 | C41: 25800 | D41: 10000 | E41: 673 | G41: 7250 | H41: 13000 | I41: 56723 | K41: 113446
B42: Sum of 05/10/2019 | C42: 41400 | D42: 500 | E42: 673 | G42: 7250 | H42: 13000 | I42: 62823 | K42: 125646
B43: Sum of 24/10/2019 | C43: 40800 | D43: 8500 | E43: 1300 | G43: 7250 | H43: 13000 | I43: 70850 | K43: 141700
B44: Sum of 21/12/2019 | C44: 37630 | D44: 2950 | E44: 1300 | G44: 7250 | H44: 15000 | I44: 64130 | K44: 128260
B45: Sum of 01/03/2020 | C45: 53000 | D45: 500 | E45: 950 | G45: 7250 | H45: 15000 | I45: 76700 | K45: 153400
B46: Sum of 23/03/2020 | C46: 21140 | D46: -7500 | E46: 735 | F46: 0 | G46: 7250 | H46: 15000 | I46: 36625 | K46: 73250
B47: Sum of 11/04/2020 | C47: 19000 | D47: -3500 | E47: 735 | F47: 0 | G47: 7250 | H47: 15000 | I47: 38485 | K47: 76970
B48: Sum of 03/05/2020 | C48: 25000 | D48: -3500 | E48: 735 | F48: 0 | G48: 7250 | H48: 15000 | I48: 44485 | K48: 88970
B49: Sum of 18/09/2020 | C49: 20750 | D49: -6700 | E49: 735 | F49: 21307 | G49: 7250 | H49: 2000 | I49: 45342 | K49: 90684
B50: Sum of 11/11/2020 | C50: 20800 | D50: -200 | E50: 1400 | F50: 30000 | G50: 8750 | H50: 2000 | I50: 62750 | K50: 125500
B51: Sum of 18/12/2020 | C51: 18800 | D51: -6500 | E51: 2600 | F51: 29000 | G51: 8750 | H51: 13000 | I51: 65650 | K51: 131300
B52: Sum of 10/04/2021 | C52: 22700 | D52: 1200 | E52: 5000 | F52: 29000 | G52: 9055 | H52: 13000 | I52: 79955 | K52: 159910

Sheet LOV
B2: Type | C2: Classe d'actif | D2: Risque | E2: Rendement / Taux | F2: Rendement / Taux
B3: Actif
B4: Passif | C4: Entrez une valeur ou sélectionnez dans la liste | D4: Entrez une valeur ou sélectionnez dans la liste | E4: Entrez une valeur ou sélectionnez dans la liste | F4: Entrez une valeur ou sélectionnez dans la liste
C5: - | D5: - | E5: - | F5: -
C6: Cash | D6: 1 / 7 | E6: ?
C7: Immobilier | D7: 2 / 7 | E7: 0 | F7: imédiat
C8: Actions/obligations | D8: 3 / 7 | E8: 0.01 | F8: non
C9: P2P Lending | D9: 4 / 7 | E9: 0.02 | F9: sous-condition
C10: Private Equity | D10: 5 / 7 | E10: 0.03 | F10: glissant
C11: Crypto-monnaie | D11: 6 / 7 | E11: 0.04 | F11: 7/8 ans
C12: CatégoriePerso1 | D12: 7 / 7 | E12: 0.05
C13: CatégoriePerso2 | E13: 0.06
E14: 0.07
E15: 0.08
E16: 0.09
E17: 0.1
E18: 0.11
E19: 0.12
E20: 0.13
E21: 0.14
E22: 0.15
